Cogmind - Beta 10.2 @@@ ROGUE MODE // 2021.05.08 @ 15:49:14 Player: reason Result: Self-destructed Performance ------------- Evolutions (1) 500 Regions Visited (3) 600 Robots Destroyed (16) 80 Value Destroyed (551) 551 Prototype IDs (3) 60 Alien Tech Used (0) 0 Bonus (0) 0 TOTAL SCORE: 1791 Bonus ------- None Cogmind --------- Core Integrity 206/400 Matter 300/300 Energy 4/100 System Corruption 0% Temperature Cool (12) Movement Core (450) Ox8 Location -9/Storage Parts ------- > --- POWER (1) -------- (None) > --- PROPULSION (2) --- Light Treads Light Treads > --- UTILITY (4) ------ Large Storage Unit Signal Interpreter Actuator Array Hacking Suite > --- WEAPON (2) ------- Katana Katana > --- INVENTORY (10) --- Actuator Array Advanced Beam Cannon Advanced Beam Cannon Mining Laser Heavy Hammer Katana Peak State ------------ > --- POWER ------------ Improved Ion Engine > --- PROPULSION ------- Light Treads Light Treads > --- UTILITY ---------- Large Storage Unit Signal Interpreter Light Armor Plating Hacking Suite > --- WEAPON ----------- Improved Lightning Gun Katana > --- INVENTORY -------- Ion Engine Ion Engine Large Storage Unit Actuator Array Actuator Array Advanced Beam Cannon Advanced Beam Cannon Heavy Hammer Katana Katana [Rating: 21] Favorites ----------- Power Ion Engine Engine Ion Engine Propulsion Light Treads Treads Light Treads Wheel Wheel Utility Large Storage Unit Device Actuator Array Storage Large Storage Unit Processor Signal Interpreter Hackware Hacking Suite Protection Light Armor Plating Weapon Katana Energy Gun EM Pulse Gun Energy Cannon Advanced Beam Cannon Slashing Weapon Katana Build | -11 -10 -9 -9 ------- Run | Scr Mat Mat Sto Slots Evolved 2 | . . 2 . Power . | . . . . Propulsion . | . . . . Utility 2 | . . 2 . Weapon . | . . . . Parts Attached 27 | 7 2 7 11 Power 3 | 1 . . 2 Engine 3 | 1 . . 2 Core . | . . . . Reactor . | . . . . Propulsion 6 | 3 . . 3 Treads 5 | 2 . . 3 Leg . | . . . . Wheel 1 | 1 . . . Hover . | . . . . Flight . | . . . . Utility 9 | 1 2 4 2 Device 1 | . . . 1 Storage 2 | 1 1 . . Processor 2 | . . 2 . Hackware 1 | . . 1 . Protection 3 | . 1 1 1 Artifact . | . . . . Weapon 9 | 2 . 3 4 Energy Gun 6 | 2 . 2 2 Energy Cannon 1 | . . . 1 Ballistic Gun . | . . . . Ballistic Cannon . | . . . . Launcher . | . . . . Special Weapon . | . . . . Impact Weapon . | . . . . Slashing Weapon 2 | . . 1 1 Piercing Weapon . | . . . . Special Melee Weapon . | . . . . Unidentified Prototypes 3 | . . . 3 Parts Lost 4 | . . . 4 Power . | . . . . Propulsion 2 | . . . 2 Utility 1 | . . . 1 Weapon 1 | . . . 1 Highest Loss Streak 4 | . . . 4 Average Slot Usage (%) 97 | . 90 98 98 Engine 11 | . 14 11 10 Treads 23 | . 28 22 21 Storage 11 | . 14 11 11 Processor 9 | . . 16 11 Hackware 8 | . . 10 11 Protection 8 | . 5 5 10 Energy Gun 11 | . 28 18 4 Energy Cannon 3 | . . . 5 Slashing Weapon 8 | . . 3 11 Naked Turns . | . . . . Heaviest Build 33 | 13 26 29 33 Greatest Support 40 | 40 40 40 40 Greatest Overweight (x) 5 | 1 . . 5 Average Overweight (x) . | . . . . Largest Inventory Capacity 12 | 6 12 10 10 Average Capacity 9 | 5 9 10 10 Most Carried 10 | 5 10 10 10 Average Carried 8 | 3 6 8 9 Final Capacity 10 | 6 10 10 10 Final Carried 10 | 5 7 10 6 Class Distribution -------------------- 52% | Scavenger-Mutant 47% | Mutant Dominant Class ---------------- Mutant | -10/Materials Mutant | -9/Materials Scavenger-Mutant | -9/Storage Resources | -11 -10 -9 -9 ----------- Run | Scr Mat Mat Sto Matter Collected 470 | 208 82 50 130 Remotely . | . . . . Salvage Created 635 | . 125 79 431 Parts 44 | . 6 12 26 Haulers Intercepted . | . . . . Recyclers Shooed . | . . . . Parts Field Recycled . | . . . . Retrieved Matter . | . . . . Parts Self-Destructed . | . . . . Prevented . | . . . . Kills | -11 -10 -9 -9 ------- Run | Scr Mat Mat Sto Combat Hostiles Destroyed 12 | . 2 1 9 Melee 7 | . . . 7 Guns 4 | . 1 1 2 AOE 1 | . 1 . . Classes Destroyed 4 | . 3 1 . Operator 2 | . 1 1 . Watcher 2 | . 1 1 . Grunt 6 | . 2 . 4 Sentry 6 | . . 1 5 Best Kill Streak 4 | . 4 2 3 Combat Bots Only 3 | . 2 1 3 Max Kills in Single Turn 2 | . 2 1 1 Gunslinging . | . . . . Exploded 1 | . 1 . . Melee 1 | . . . 1 Uniques/NPCs Destroyed . | . . . . Combat | -11 -10 -9 -9 -------- Run | Scr Mat Mat Sto Damage Taken 1247 | . 80 59 1108 Core 194 | . . 15 179 Absorbed by Shields . | . . . . Core Remaining (%) 100 | 100 100 . . Volleys Fired 19 | . 5 4 10 Largest 2 | . 2 2 1 Hottest 112 | . 80 112 68 Shots Fired 28 | . 10 8 10 Gun 27 | . 10 8 9 Cannon 1 | . . . 1 Launcher . | . . . . Special . | . . . . Kinetic . | . . . . Thermal 7 | . . 6 1 Explosive . | . . . . Electromagnetic 21 | . 10 2 9 Robot Hit Streak 7 | . 7 4 3 Robot Miss Streak 3 | . 1 1 3 Penetration Max . | . . . . Secondary Targets . | . . . . Shots Hit Robots 45 | . 8 6 31 Core Hits 20 | . 5 4 11 Critical Hits 2 | . . . 2 Critical Kills 1 | . . . 1 Critical Parts Destroyed . | . . . . Melee Attacks 30 | . . . 30 Impact . | . . . . Slashing 30 | . . . 30 Piercing . | . . . . Sneak Attacks 1 | . . . 1 Combat Hostiles . | . . . . Follow-up Attacks 1 | . . . 1 Damage Inflicted 1316 | . 269 87 960 Guns 321 | . 119 87 115 Cannons . | . . . . Explosions 150 | . 150 . . Melee 845 | . . . 845 Ramming . | . . . . Kinetic . | . . . . Thermal 222 | . 150 72 . Explosive . | . . . . Electromagnetic 249 | . 119 15 115 Impact . | . . . . Slashing 845 | . . . 845 Piercing . | . . . . Highest Corruption . | . . . . Average Corruption . | . . . . Corruption Purged . | . . . . Overload Shots . | . . . . Overflow Damage 43 | . 27 . 16 Projectiles . | . . . . Explosions 27 | . 27 . . Melee 16 | . . . 16 Knockbacks . | . . . . Impact . | . . . . Kinetic . | . . . . Secondary . | . . . . Self-Inflicted Damage . | . . . . Shots . | . . . . Rammed . | . . . . Targets Rammed . | . . . . Kicked . | . . . . Crushed . | . . . . Highest Temperature 135 | . 135 84 94 Average Temperature 45 | . 76 33 29 Received Heat Transfer 450 | . 45 18 387 Siege Activations . | . . . . Robots Corrupted . | . . . . Combat Hostiles . | . . . . Parts Fried 1 | . 1 . . Impact Corruptions . | . . . . Robots Melted . | . . . . Combat Hostiles . | . . . . Parts Melted 1 | . . 1 . Heat Transferred 335 | . 150 185 . Parts Sabotaged . | . . . . Parts Stolen . | . . . . Parts Stripped . | . . . . Power Chain Reactions 1 | . 1 . . Missiles Intercepted . | . . . . Alert | -11 -10 -9 -9 ------- Run | Scr Mat Mat Sto Peak Influence 150 | . 92 95 150 Initial 39 | . . 38 39 Average 57 | . 51 77 57 Maximum Alert Level . | . . . . Low Security (%) 100 | 100 100 100 100 Level 1 . | . . . . Level 2 . | . . . . Level 3 . | . . . . Level 4 . | . . . . Level 5 . | . . . . High Security . | . . . . Max Security . | . . . . Squads Dispatched 5 | . 1 1 3 Investigation 1 | . . . 1 Extermination . | . . . . Reinforcement 4 | . 1 1 2 Assault . | . . . . Garrison . | . . . . Intercept . | . . . . Construction Impeded . | . . . . Haulers Reinforced . | . . . . Stealth | -11 -10 -9 -9 --------- Run | Scr Mat Mat Sto Distress Signals 1 | . . . 1 Communications Jammed . | . . . . Distress Signals . | . . . . Times Spotted 25 | . 4 3 18 Peak Tracking Total 8 | . 3 3 8 Tactical Retreats 2 | . . . 2 Traps | -11 -10 -9 -9 ------- Run | Scr Mat Mat Sto Traps Triggered . | . . . . Indirectly . | . . . . Trap Hack Attempts . | . . . . Triggered . | . . . . Disarmed . | . . . . Reprogrammed . | . . . . Reused . | . . . . Traps Extracted . | . . . . Installed . | . . . . Triggered . | . . . . Machines | -11 -10 -9 -9 ---------- Run | Scr Mat Mat Sto Machines Disabled . | . . . . Max in Single Turn . | . . . . Machines Sabotaged . | . . . . Garrisons Compromised . | . . . . Overloaded Fab Kills . | . . . . Fab Network Shutdowns . | . . . . Hacking | -11 -10 -9 -9 --------- Run | Scr Mat Mat Sto Machines Accessed 7 | . 1 . 6 Terminals 6 | . 1 . 5 Fabricators . | . . . . Repair Stations 1 | . . . 1 Recycling Units . | . . . . Scanalyzers . | . . . . Garrison Access . | . . . . Total Hacks 13 | . 1 . 12 Successful 8 | . 1 . 7 Failed 5 | . . . 5 Catastrophic . | . . . . Database Lockouts . | . . . . Manual . | . . . . Terminals 11 | . 1 . 10 Fabricators . | . . . . Repair Stations 2 | . . . 2 Recycling Units . | . . . . Scanalyzers . | . . . . Garrison Access . | . . . . Terminal Hacks 6 | . 1 . 5 Open Door 5 | . . . 5 Locate Traps 1 | . 1 . . Fabricator Hacks . | . . . . Repair Station Hacks 2 | . . . 2 Scan Component 1 | . . . 1 Repair 1 | . . . 1 Recycling Unit Hacks . | . . . . Scanalyzer . | . . . . Garrison Access Hacks . | . . . . Unauthorized Hacks . | . . . . Terminals . | . . . . Fabricators . | . . . . Repair Stations . | . . . . Recycling Units . | . . . . Scanalyzers . | . . . . Garrison Access . | . . . . Data Cores Recovered . | . . . . Used . | . . . . Hacking Detections 4 | . 1 . 3 Full Trace Events 1 | . . . 1 Feedback Events . | . . . . Feedback Blocked . | . . . . Robot Schematics Acquired . | . . . . Robots Built . | . . . . Matter . | . . . . Time . | . . . . Total Robot Build Rating . | . . . . Part Schematics Acquired . | . . . . Parts Built . | . . . . Matter . | . . . . Time . | . . . . Total Part Build Rating . | . . . . Parts Repaired 1 | . . . 1 Time 26 | . . . 26 Parts Recycled . | . . . . Recycled Matter . | . . . . Retrieved Matter . | . . . . Retrieved Components . | . . . . Parts Scanalyzed . | . . . . Part Schematics Acquired . | . . . . Parts Damaged . | . . . . Bothacking | -11 -10 -9 -9 ------------ Run | Scr Mat Mat Sto Used RIF Installer . | . . . . Robots Hacked . | . . . . Non-combat . | . . . . Combat . | . . . . Robot Hacks Applied . | . . . . Relay Couplers Released . | . . . . Robots Rewired . | . . . . Allies Hacked . | . . . . Hacks Repelled . | . . . . Allies | -11 -10 -9 -9 -------- Run | Scr Mat Mat Sto Total Allies . | . . . . Largest Group . | . . . . Highest-Rated Group . | . . . . Highest-Rated Ally . | . . . . Total Orders . | . . . . Ally Attacks . | . . . . Total Damage . | . . . . Kills . | . . . . Allies Corrupted . | . . . . Allies Melted . | . . . . Intel | -11 -10 -9 -9 ------- Run | Scr Mat Mat Sto Robot Analysis Total . | . . . . Derelict Logs Recovered . | . . . . Drone Launches . | . . . . Drone Recoveries . | . . . . Exploration | -11 -10 -9 -9 ------------- Run | Scr Mat Mat Sto Turns Passed 1878 | 72 342 278 1186 Spaces Moved 986 | 49 198 149 590 Core 13 | 12 . . 1 Treads 959 | 23 198 149 589 Legs . | . . . . Wheels 14 | 14 . . . Hover . | . . . . Flight . | . . . . Fastest Speed 50 | 50 160 160 160 Average Speed 157 | 111 160 160 160 Slowest Speed 300 | 160 160 160 300 Overloaded Moves . | . . . . Propulsion Burnouts . | . . . . Robots Hopped . | . . . . Cave-ins Triggered . | . . . . Exploration Rate (%) 26 | 5 34 10 58 Regions Visited 3 Branch Regions 1 Pre-discovered Areas . | . . . . Known Exits Taken 1 | . . 1 . Unknown Exits Taken 2 | 1 1 . . Scrap Searched . | . . . . Spaces Dug . | . . . . Terrain Destroyed 6 | . 6 . . Melee . | . . . . Projectile . | . . . . AOE 6 | . 6 . . Terrain Rammed . | . . . . Walls Destroyed . | . . . . Machines Disabled . | . . . . Actions | -11 -10 -9 -9 --------- Run | Scr Mat Mat Sto Total 1248 | 66 216 183 783 Wait 105 | . 1 . 104 Move 983 | 48 197 148 590 Hop . | . . . . Pick Up 53 | 11 7 15 20 Fast Attach . | . . . . Attach 16 | 6 2 3 5 Detach . | . . . . Swap 11 | 1 . 4 6 Drop 32 | . 4 9 19 Fire 19 | . 5 4 10 Melee 29 | . . . 29 Ram . | . . . . Kick . | . . . . Crush . | . . . . Escape Stasis . | . . . . Rewire . | . . . . Trap . | . . . . Miscellaneous . | . . . . Route ------- -11/Scrapyard -10/Materials -9/Materials -9/Storage History --------- Turn | Location | Event 8 | -11/Scrapyard | Discovered new exit (range 16) 73 | -11/Scrapyard | Entered Materials 306 | -10/Materials | Build established: Mutant 391 | -10/Materials | Discovered new exit (range 8) 415 | -10/Materials | Entered another Materials area 415 | -9/Materials | Evolved 2 slots: Utility x2 522 | -9/Materials | Discovered new exit (range 6) 617 | -9/Materials | Identified exit to Storage 693 | -9/Materials | Entered Storage 1130 | -9/Storage | Repaired Ion Engine 1183 | -9/Storage | Build established: Scavenger-Mutant 1846 | -9/Storage | Lost 4 parts (2n1u1w) 1879 | -9/Storage | Self-destructed Last Messages --------------- 01828_ G-34 Mercenary destroyed. 01836_ Katana follow-up attack on G-47 Trooper. 01840_ T-07 Excavator is excavating. 01844_ K-01 Serf collects debris. 01845_ Acquired 31 matter. 01847_ G-34 Mercenary destroyed. 01847_ K-01 Serf collects debris. 01854_ G-34 Mercenary destroyed. 01854_ K-01 Serf collects debris. 01856_ Acquired 9 matter. 01859_ R-06 Scavenger collects Aluminum Leg. 01859_ K-01 Serf collects debris. 01862_ R-06 Scavenger collects Heat Sink. 01862_ K-01 Serf collects debris. 01866_ R-06 Scavenger collects Aluminum Leg. 01867_ ALERT: Hostiles spotted, dispatching reinforcements to Terminal S004. 01870_ K-01 Serf collects debris. 01870_ R-06 Scavenger collects Heat Sink. 01873_ K-01 Serf collects debris. Map ----- +----------------------------------------------------+ | # "????" #???????????? | | ##### # "????" #???????????? | | #???# + """""" #???????????? | | ###???# # #???????????? | | ??????# # ############? | | ??????# # ## #? | | ??????# # ## #? | | ####### #######+### #? | | # #? | | + #? | | # #? | | ###########+#### ##### # #? | | ?????# # #???# # #? | | ?????# """ # #???# #####+#####? | | ?????# """ [[[ # #??##+##### #????? | | ?????# """ [[[ # #??# % # #????? | | ?????# [[[ # #??# = # #????? | | ?????# # #??# ]#^#????? | | ?????# # #??# # #??##? | | ?????# [ # #### [ # #? ## | | ?????########### + !# #? # | | ???????????????# ####/### # # | | ???????????????# #?# # # | | ???????????????# #?# # | | ???????????????# ggg###k# # | | ??#####+######## @ t #?? # | | ?? o r % %#????? | | ? r % %!#????? | | ? % ###+#####????? | | ? % + #?????? | | ? #######+##### #?????? | | ?????????????? =???# ] [ #?????? | | ???????????? ???# = % #?????? | | ???????????# ??# #?????? | | ???????????# "Y" #??# / #?????? | | ???????????# """ #??########?????? | | ???????????# #???????????????? | | ???????????##+#####???????????????? | | ???????????? ????????????????????? | | ???????????? ????????????????????? | | ??????????? ??????????????????????? | | ??????????????????????????????????? | | ??????????????????????????????????? | | ??????????????????????????????????? | | ??????????????????????????????????? | | ??????????????????????????????????? | | ??????????????????????????????????? | | ??????????????????????????????????? | | ??????????????????????????????????? | | ??????????????????????????????????? | +----------------------------------------------------+ Best States ------------- Heat Dissipation 28 Energy Generation 12 Energy Capacity 265 Matter Stores 300 Matter Capacity 300 Sight Range 16 Terrain Scan Density 10 Armor Coverage 150 Weapon Shielding 33 Evasion (%) 50 Targeting Accuracy 6 Recoil Reduction 2 Offensive Hacking 10 Item Schematics ----------------- None Robot Schematics ------------------ None Fabricated ------------ Nothing Alien Tech Used ----------------- None Achievements -------------- None Challenges ------------ None Game ------ Seed TractorArchitectBarrier Manual? 0 Play Time 00:25:28 Cumulative 15.8 hours Start 2021.05.08 @ 15:23:26 End 2021.05.08 @ 15:49:14 Sessions 1 Manual Loads 0 Difficulty Rogue Special Mode None Game No. 26 Rogue 26 Adventurer 0 Explorer 0 Win Type - Total 0 Types 0/0/0/0/0/0/0/0/0 Lore% 16 Gallery% 25 Achievement% 18 Wizard Run 0 Options --------- ASCII 0 Keyboard 0 Movement Numpad Keybinds 0 Fullscreen 1 Font 18/SmallcapsGlow Map View 76x50 Tactical HUD 1 Map Filters NONE Filters NONE Steam 1 RUN: 0df013a9-7641-429c-8b0d-eb08d3eabb1f